bitfinex-derivatives/quotes_SOLF0:USTF0_20260115
["timestamp","ask_amount","ask_price","bid_price","bid_amount"]
[1768495011948,0.04919325,142.9,142.85,17.24204888]
[1768495012248,0.04919325,142.9,142.85,20.37853509]
[1768495012448,0.04919325,142.9,142.85,26.68063509]
[1768495013141,0.00339802,142.9,142.86,9.43808621]
[1768495014142,0.00339802,142.9,142.86,3.13648621]
[1768495014343,0.00339802,142.9,142.87,0.04502871]
[1768495016150,0.00339802,142.9,142.88,3.13648621]
[1768495016454,3.20499401,143.03,142.89,3.13648621]
[1768495016650,3.20499401,143.01,142.89,3.13648621]
[1768495017650,3.20499401,143.01,142.94,0.04449075]
[1768495017858,9.50059401,143.0,142.94,0.04449075]
[1768495018242,9.50059401,143.0,142.9,9.43638621]
[1768495018744,0.04465515,142.96,142.9,9.43638621]
[1768495019243,27.72847647,143.05,142.93,3.13648621]
[1768495019244,9.49979401,143.02,142.93,3.13648621]
[1768495019651,3.20499401,143.01,142.93,3.13648621]
[1768495019848,3.20499401,143.0,142.9,3.13648621]
[1768495020649,3.20499401,142.98,142.94,0.04452697]
[1768495020850,3.20499401,142.98,142.9,3.13648621]
[1768495021853,3.20499401,142.97,142.87,3.13648621]
[1768495022251,0.04685942,142.95,142.87,3.13648621]
[1768495022850,0.04685942,142.95,142.87,9.43768621]
[1768495023154,0.04685942,142.95,142.87,3.13648621]
[1768495023448,0.04685942,142.95,142.88,9.43728621]
[1768495023757,0.04685942,142.95,142.88,3.13648621]
[1768495024058,85.90499401,142.99,142.88,3.13648621]
[1768495024244,4.99609319,142.98,142.9,3.13648621]
[1768495024453,3.20499401,142.99,142.9,3.13648621]
[1768495025457,3.20499401,142.99,142.92,6.299]
[1768495025754,3.20499401,142.99,142.93,0.04472962]
[1768495025954,89.41847647,143.02,142.93,3.18121583]
[1768495025955,3.20499401,143.02,142.93,3.18121583]
[1768495026253,4.99678211,143.01,142.93,3.18121583]
[1768495026446,4.99691283,143.0,142.93,3.13648621]
[1768495026647,3.20499401,143.02,142.93,3.13648621]
[1768495026847,4.99691283,143.01,142.96,0.04702216]
[1768495027056,3.20499401,143.02,142.96,0.04702216]
[1768495027260,4.99673885,143.01,142.96,0.04702216]
[1768495027447,4.99673885,143.0,142.96,0.04702216]
[1768495027646,3.20499401,143.02,142.96,0.04702216]
[1768495027849,4.99735298,143.01,142.96,0.04702216]
[1768495028051,3.20499401,143.02,142.96,0.04702216]
[1768495028250,4.99717899,143.01,142.96,0.04702216]
[1768495028449,4.9977264,143.0,142.96,0.04702216]
[1768495028650,3.20499401,143.02,142.96,0.04702216]
[1768495028851,4.9977264,143.01,142.96,0.04702216]
[1768495029161,3.20499401,143.02,142.96,0.04702216]
[1768495029358,4.99765655,143.01,142.96,0.04702216]
[1768495029558,9.49869401,143.05,142.96,0.04702216]
[1768495029754,8.20252998,143.04,142.96,0.04702216]
[1768495030051,4.99753597,143.03,142.95,3.13648621]
[1768495030254,4.99753597,143.02,142.95,9.43398621]
[1768495030456,9.49889401,143.04,142.95,9.43398621]
[1768495030457,0.04857223,143.01,142.95,3.13648621]
[1768495030651,0.04857223,143.01,142.92,3.13648621]
[1768495031053,3.20499401,143.02,142.92,3.13648621]
[1768495031255,4.99740304,143.01,142.93,2.81953043]
[1768495031556,3.20499401,143.02,142.93,5.95601664]
[1768495031759,0.05175063,142.98,142.95,6.2977]
[1768495031961,3.20499401,143.02,142.95,6.2977]
[1768495032153,4.99711516,143.01,142.96,0.04838077]
[1768495032354,3.20499401,143.02,142.96,0.04838077]
[1768495032566,2.81953043,143.04,142.96,9.48216698]
[1768495032752,4.99614382,143.03,142.96,9.48216698]
[1768495032952,2.81953043,143.04,142.96,9.48216698]
[1768495033152,4.99578913,143.03,142.96,9.48216698]
[1768495033359,3.20499401,143.05,142.96,9.48216698]
[1768495033360,4.99496616,143.02,142.96,9.48216698]
[1768495033657,3.20499401,143.05,142.96,9.43378621]
[1768495033859,4.9945966,143.04,142.96,9.43378621]
[1768495034059,3.20499401,143.05,142.98,0.05234087]
[1768495034261,4.99367831,143.04,142.98,0.05234087]
[1768495034461,3.20499401,143.05,142.98,0.05234087]
[1768495035863,3.20499401,143.05,142.98,6.34874087]
[1768495036559,3.20499401,143.05,142.99,6.2959]
[1768495037059,85.88499401,143.07,142.98,3.18882708]
[1768495037261,8.19390286,143.06,142.98,3.18882708]
[1768495037457,3.20499401,143.06,142.98,3.13648621]
[1768495038666,3.20499401,143.06,143.01,0.04503524]
[1768495044666,3.10838993,143.08,143.01,3.33711973]
[1768495045369,3.10838993,143.08,143.01,0.04503524]
[1768495046270,3.10838993,143.06,143.01,0.04503524]
[1768495046657,3.10838993,143.06,142.98,9.58818449]
[1768495047070,3.10838993,143.06,143.02,0.04762116]
[1768495047970,3.10838993,143.06,142.98,3.29208449]
[1768495048169,3.10838993,143.04,142.95,3.29208449]
[1768495049171,3.10838993,143.04,142.97,6.2968]
[1768495049372,0.05304737,143.01,142.97,6.2968]
[1768495049771,6.2928,143.07,142.98,6.2964]
[1768495050069,3.10838993,143.07,142.98,3.29208449]
[1768495050575,82.66,143.08,142.98,3.29208449]
[1768495051162,82.66,143.08,143.02,6.34731052]
[1768495051474,3.10838993,143.1,143.02,3.34489501]
[1768495052873,3.10838993,143.1,143.03,6.2942]
[1768495053262,3.10838993,143.1,143.03,9.10987492]
[1768495053470,3.10838993,143.13,143.05,6.10775941]
[1768495053665,4.32504553,143.16,143.06,3.29208449]
[1768495053861,4.32504553,143.16,143.07,6.10775941]
[1768495054375,0.04910987,143.12,143.07,6.10775941]
[1768495054571,0.00758377,143.12,143.1,0.05356778]
[1768495055872,127.10838993,143.19,143.1,3.34565227]
[1768495056069,3.10838993,143.19,143.11,2.81567492]
[1768495056471,3.10838993,143.19,143.11,9.10617492]
[1768495056975,3.10838993,143.19,143.11,12.39825941]
[1768495057176,3.10838993,143.18,143.09,6.2913]
[1768495057375,3.10838993,143.18,143.08,3.29208449]
[1768495057376,3.10838993,143.17,143.08,3.29208449]
[1768495057774,3.10838993,143.15,143.06,2.81567492]
[1768495058167,3.10838993,143.15,143.06,6.10775941]
[1768495058568,3.10838993,143.15,143.09,0.04447768]
[1768495058874,3.10838993,143.15,143.04,82.62]
[1768495059079,3.10838993,143.1,143.02,3.29208449]
[1768495059476,3.10838993,143.1,143.03,6.294]
[1768495062067,3.10838993,143.15,143.03,3.29208449]
[1768495062271,3.10838993,143.13,143.03,3.29208449]
[1768495062577,3.10838993,143.13,143.06,6.2928]
[1768495062780,3.10838993,143.13,143.07,0.0516379]
[1768495064975,82.62,143.16,143.07,0.0516379]
[1768495064976,3.10838993,143.16,143.07,0.0516379]
[1768495065182,3.10838993,143.16,143.07,3.34372239]
[1768495065375,3.10838993,143.16,143.07,3.29208449]
[1768495065880,3.10838993,143.16,143.1,0.05110736]
[1768495070286,3.10838993,143.19,143.1,0.05110736]
[1768495070784,3.10838993,143.19,143.09,3.29208449]
[1768495071485,3.10838993,143.19,143.13,0.04587601]
[1768495073987,3.15615368,143.17,143.13,0.04587601]
[1768495074289,3.15615368,143.17,143.09,9.58338449]
[1768495074888,3.15615368,143.17,143.1,6.2911]
[1768495075289,3.15615368,143.17,143.06,97.8854]
[1768495075290,92.04325368,143.2,143.11,9.45648384]
[1768495075485,92.04325368,143.2,143.12,3.16578384]
[1768495075789,0.04445344,143.17,143.12,3.16578384]
[1768495076677,0.04445344,143.17,143.13,6.2897]
[1768495076989,3.15615368,143.2,143.13,3.16578384]
[1768495077188,3.15615368,143.22,143.14,0.04516493]
[1768495077389,3.15615368,143.2,143.14,0.04516493]
[1768495077990,3.15615368,143.2,143.13,6.2898]
[1768495078189,3.15615368,143.2,143.12,3.16578384]
[1768495078396,3.15615368,143.2,143.15,0.04711178]
[1768495079695,210.97212908,143.23,143.15,0.04711178]
[1768495079902,209.75615368,143.23,143.15,0.04711178]
[1768495080592,3.15615368,143.26,143.16,3.16578384]
[1768495080791,82.58,143.25,143.16,3.16578384]
[1768495081096,209.73615368,143.25,143.19,6.2871]
[1768495081300,3.15615368,143.24,143.16,3.16578384]
[1768495081498,3.15615368,143.24,143.13,101.00438384]
[1768495081699,3.15615368,143.22,143.13,101.00438384]
[1768495082397,3.15615368,143.22,143.13,3.16578384]
[1768495082903,0.0443761,143.19,143.13,3.16578384]
[1768495084004,0.0443761,143.19,143.15,6.2889]
[1768495084503,0.0443761,143.19,143.16,6.2885]
[1768495084701,0.0443761,143.19,143.13,3.16578384]
[1768495084900,0.0443761,143.19,143.15,97.8268]
[1768495085107,82.58,143.24,143.16,0.04686729]
[1768495085296,124.0,143.25,143.19,6.2871]
[1768495085495,206.58,143.25,143.19,6.2871]
[1768495085802,206.58,143.25,143.15,100.99258384]
[1768495085803,210.97421258,143.25,143.13,101.00478384]
[1768495086404,210.97421258,143.25,143.18,0.04897421]
[1768495086802,217.25891258,143.25,143.18,0.04897421]
[1768495087000,3.15615368,143.24,143.18,0.04897421]
[1768495088796,3.15615368,143.24,143.12,3.16578384]
[1768495088995,3.20703465,143.22,143.12,3.16578384]
[1768495089402,3.15615368,143.22,143.14,6.2892]
[1768495089606,3.15615368,143.22,143.12,3.16578384]
[1768495090008,3.15615368,143.22,143.15,6.2889]
[1768495090206,0.05071268,143.18,143.12,3.16578384]
[1768495090909,0.05071268,143.18,143.13,9.45528384]
[1768495091411,0.05071268,143.18,143.14,3.16578384]
[1768495092211,0.05071268,143.18,143.11,7.55999642]
[1768495092505,0.05071268,143.18,143.12,3.16578384]
[1768495093009,0.05071268,143.18,143.13,6.2898]
[1768495093210,0.05071268,143.18,143.13,3.16578384]
[1768495093402,85.71615368,143.23,143.14,3.21536678]
[1768495093906,85.71615368,143.23,143.14,3.16578384]
[1768495094311,3.15615368,143.22,143.14,3.16578384]
[1768495094502,9.44205368,143.22,143.14,9.45508384]
[1768495094808,9.44205368,143.22,143.17,0.04986615]
[1768495095013,3.15615368,143.22,143.17,0.04986615]
[1768495096204,3.15615368,143.22,143.14,6.2893]
[1768495096609,3.20866318,143.21,143.14,6.2893]
[1768495097013,3.20866318,143.21,143.11,3.16578384]
[1768495097410,3.15615368,143.21,143.11,3.16578384]
[1768495097610,3.15615368,143.21,143.14,6.2894]
[1768495097812,0.0523116,143.17,143.14,6.2894]
[1768495098213,0.0523116,143.17,143.1,97.8585]
[1768495098214,0.0523116,143.17,143.15,6.2889]
[1768495098415,3.15615368,143.21,143.15,6.2889]
[1768495098613,3.15615368,143.21,143.14,0.046973]
[1768495099215,3.15615368,143.21,143.14,3.21275684]
[1768495099514,3.15615368,143.22,143.14,3.21275684]
[1768495099911,3.15615368,143.22,143.17,6.288]
[1768495100116,3.15615368,143.22,143.14,3.16578384]
[1768495100117,82.56,143.23,143.14,3.16578384]
[1768495100309,82.56,143.23,143.17,0.04784089]
[1768495101118,85.85098292,143.23,143.18,6.2876]
[1768495104521,3.29098292,143.23,143.19,6.2872]
[1768495104717,300.39421258,143.3,143.19,3.28591244]
[1768495104923,87.53256815,143.29,143.19,3.28591244]
[1768495105222,4.97256815,143.28,143.19,3.28591244]
[1768495105417,4.97307227,143.27,143.19,3.28591244]
[1768495105722,206.56,143.29,143.23,0.05187578]
[1768495105912,4.97307227,143.28,143.23,0.05187578]
[1768495106118,4.97307227,143.27,143.23,0.05187578]
[1768495106323,206.56,143.29,143.23,0.05187578]
[1768495106519,4.97446777,143.28,143.23,0.05187578]
[1768495106821,8.07289569,143.27,143.23,0.05187578]
[1768495107012,3.09842792,143.27,143.23,0.05187578]
[1768495108721,8.07588325,143.26,143.17,3.28591244]
[1768495109019,3.14782222,143.26,143.17,3.28591244]
[1768495109322,3.09842792,143.24,143.17,9.57361244]
[1768495109520,3.09842792,143.22,143.11,3.28591244]
[1768495109723,90.61853929,143.21,143.11,3.28591244]
[1768495109920,0.04722264,143.18,143.11,3.28591244]
[1768495110611,0.04722264,143.18,143.14,6.2892]
[1768495111016,0.04722264,143.18,143.11,3.28591244]
[1768495111217,0.04722264,143.18,143.12,9.57591244]
[1768495111418,0.04722264,143.18,143.12,3.28591244]
[1768495111614,3.09842792,143.2,143.12,3.28591244]
[1768495111816,3.09842792,143.2,143.1,9.57691244]
[1768495112028,3.09842792,143.19,143.1,9.57691244]
[1768495112329,0.04663971,143.17,143.1,9.57691244]
[1768495116725,3.14506763,143.17,143.1,3.28591244]
[1768495116925,4.99341788,143.16,143.1,3.28591244]
[1768495117129,3.14506763,143.17,143.1,3.28591244]
[1768495117330,4.99371273,143.16,143.1,3.28591244]
[1768495117624,9.43326763,143.17,143.1,3.28591244]
[1768495117829,4.99314993,143.16,143.1,3.28591244]
[1768495118125,9.43326763,143.17,143.1,3.28591244]
[1768495118325,4.99314993,143.16,143.1,3.28591244]
[1768495118627,9.43326763,143.17,143.1,3.28591244]
[1768495118830,4.99324866,143.16,143.1,3.28591244]
[1768495119127,3.14506763,143.17,143.1,3.28591244]
[1768495119426,4.99325205,143.16,143.1,3.28591244]
[1768495119636,0.04663971,143.17,143.1,3.28591244]
[1768495120418,0.04663971,143.17,143.1,101.14591244]
[1768495120623,13.7783405,143.23,143.11,3.28591244]
[1768495120825,4.99232944,143.22,143.13,3.28591244]
[1768495121026,4.99232944,143.21,143.14,9.57521244]
[1768495121331,4.99232944,143.2,143.14,9.57521244]
[1768495121534,5.91014875,143.23,143.14,9.57521244]
[1768495121733,4.9925272,143.22,143.14,9.57521244]
[1768495121928,4.9925272,143.21,143.14,9.57521244]
[1768495122135,5.91014875,143.23,143.14,9.57521244]
[1768495122334,4.99246264,143.22,143.14,9.57521244]
[1768495122533,8.09089056,143.21,143.14,9.57521244]
[1768495122737,5.91014875,143.19,143.11,3.28591244]
[1768495124535,0.0486837,143.16,143.11,3.28591244]
[1768495124938,0.0486837,143.16,143.11,9.57651244]
[1768495127142,0.0486837,143.16,143.12,9.57611244]
[1768495127332,6.2861,143.22,143.12,9.57611244]
[1768495127333,2.81172083,143.21,143.12,3.33595065]
[1768495127642,4.99266018,143.2,143.12,3.33595065]
[1768495127838,4.99266018,143.19,143.12,3.28591244]
[1768495128044,5.91014875,143.21,143.12,3.28591244]
[1768495128242,4.99289169,143.2,143.12,3.28591244]
[1768495128442,4.99289169,143.19,143.12,3.28591244]
[1768495128637,5.91014875,143.21,143.15,0.0534467]
[1768495128943,4.99279466,143.2,143.15,0.0534467]
[1768495129143,4.99279466,143.19,143.15,0.0534467]
[1768495129345,5.91014875,143.21,143.15,0.0534467]
[1768495129531,4.9926595,143.2,143.15,0.0534467]
[1768495129839,5.91014875,143.21,143.15,0.0534467]
[1768495129840,4.9926595,143.19,143.15,0.0534467]
[1768495130037,5.91014875,143.21,143.15,0.0534467]
[1768495130341,4.99272407,143.2,143.15,0.0534467]
[1768495130542,4.99272407,143.19,143.15,0.0534467]
[1768495130738,5.91014875,143.21,143.15,0.0534467]
[1768495130946,4.99276306,143.2,143.15,0.0534467]
[1768495131145,4.99276306,143.19,143.15,0.0534467]
[1768495131346,9.19017469,143.18,143.11,6.2904]
[1768495131540,4.20070191,143.18,143.11,6.2904]
[1768495131737,2.8614277,143.19,143.1,3.9227913]
[1768495131939,4.98966006,143.18,143.1,3.9227913]
[1768495132138,2.81172083,143.19,143.1,3.9227913]
[1768495132735,0.04808867,143.16,143.12,6.2902]
[1768495133255,0.04808867,143.16,143.12,10.2129913]
[1768495133458,7.01242274,143.2,143.13,6.2898]
[1768495133644,4.98916718,143.19,143.13,6.2898]
[1768495133950,7.01242274,143.2,143.13,6.2898]
[1768495134152,4.98881989,143.19,143.13,6.2898]
[1768495134353,7.01242274,143.2,143.13,6.2898]
[1768495134553,85.37172083,143.22,143.14,10.2120913]
[1768495134755,4.98834682,143.21,143.14,10.2120913]
[1768495134955,4.98834682,143.2,143.14,10.2120913]
[1768495135156,89.57242274,143.22,143.17,0.04735003]
[1768495135458,0.04903117,143.18,143.14,6.2893]
[1768495135853,7.01242274,143.2,143.14,6.2893]
[1768495136755,0.05078165,143.18,143.14,6.2893]
[1768495138354,0.05078165,143.18,143.13,3.9227913]
[1768495139758,0.05078165,143.18,143.15,6.2889]
[1768495142666,0.05078165,143.18,143.16,6.2885]
[1768495142862,7.01242274,143.25,143.15,3.9227913]
[1768495143070,4.98689972,143.24,143.17,3.9227913]
[1768495143360,4.20070191,143.25,143.17,3.9227913]
[1768495143565,4.98515724,143.24,143.17,3.9227913]
[1768495143766,4.20070191,143.25,143.19,6.2871]
[1768495144070,4.98522172,143.24,143.19,0.04577928]
[1768495144371,4.20070191,143.25,143.19,6.33277928]
[1768495144857,89.57242274,143.28,143.19,10.25557058]
[1768495145059,9.18509407,143.27,143.19,10.25557058]
[1768495145257,4.98439216,143.26,143.19,10.2097913]
[1768495145663,4.98439216,143.26,143.22,0.04828773]
[1768495147063,4.20070191,143.27,143.22,0.04828773]
[1768495150269,86.76070191,143.29,143.22,10.25677903]
[1768495151567,4.20070191,143.28,143.22,10.25677903]
[1768495153275,4.20070191,143.28,143.22,0.04828773]
[1768495155675,7.01242274,143.28,143.22,0.04828773]
[1768495157978,4.20070191,143.27,143.22,0.04828773]
[1768495158373,4.20070191,143.25,143.19,6.2868]
[1768495158581,2.86486759,143.26,143.19,10.2095913]
[1768495159982,2.86486759,143.26,143.2,6.2867]
[1768495162885,0.05314676,143.26,143.2,11.35671472]
[1768495163391,0.05314676,143.26,143.21,6.2863]
[1768495166786,0.05314676,143.26,143.2,5.07001472]
[1768495168088,4.7393659,143.25,143.17,5.02398182]
[1768495168383,4.7393659,143.21,143.13,5.02398182]
[1768495168683,4.7393659,143.19,143.11,6.2903]
[1768495168887,2.86136763,143.18,143.11,11.31428182]
[1768495170193,2.86136763,143.18,143.11,5.02398182]
[1768495170902,2.86136763,143.18,143.12,6.2901]
[1768495172588,2.86136763,143.18,143.12,11.31408182]
[1768495173502,0.0496468,143.18,143.12,11.31408182]
[1768495173701,7.60073353,143.18,143.12,11.31408182]
[1768495176602,2.86136763,143.18,143.13,11.31368182]
[1768495176802,0.0496468,143.18,143.13,11.31368182]
[1768495177101,2.81172083,143.22,143.14,5.02398182]
[1768495177300,2.81172083,143.22,143.15,11.31278182]
[1768495177500,2.81172083,143.22,143.15,5.02398182]
[1768495177501,0.04820297,143.17,143.15,5.02398182]
[1768495177803,7.55108673,143.22,143.15,5.02398182]
[1768495178102,2.81172083,143.23,143.16,5.02398182]
[1768495178306,4.7393659,143.24,143.18,5.02398182]
[1768495178499,2.81172083,143.25,143.18,5.02398182]
[1768495179204,2.81172083,143.25,143.18,11.31158182]
[1768495179705,7.55108673,143.26,143.2,0.05292097]
[1768495179997,2.81172083,143.27,143.2,11.36340279]
[1768495180203,4.95673769,143.26,143.2,5.07690279]
[1768495180404,2.81172083,143.27,143.2,5.07690279]
[1768495180603,4.95727013,143.26,143.2,5.07690279]
[1768495180910,2.81172083,143.27,143.2,5.07690279]
[1768495181204,4.95727013,143.26,143.2,5.07690279]
[1768495181500,2.81172083,143.27,143.2,5.07690279]
[1768495181696,4.95780715,143.26,143.2,5.07690279]
[1768495181907,2.81172083,143.27,143.2,5.07690279]
[1768495182096,4.95780715,143.26,143.2,5.07690279]
[1768495182292,2.81172083,143.27,143.2,5.07690279]
[1768495182596,4.95852685,143.26,143.2,5.07690279]
[1768495182798,2.81172083,143.27,143.2,5.07690279]
[1768495183100,4.95852685,143.26,143.2,5.07690279]
[1768495183305,11.0226659,143.28,143.2,5.07690279]
[1768495183508,4.95921899,143.27,143.2,5.07690279]
[1768495183710,4.95921899,143.26,143.2,5.07690279]
[1768495183913,11.0226659,143.28,143.2,5.07690279]
[1768495184208,4.95921899,143.27,143.2,5.07690279]
[1768495184402,4.95921899,143.26,143.2,5.07690279]
[1768495184599,11.0226659,143.28,143.2,5.07690279]
[1768495184800,4.95967876,143.27,143.2,5.07690279]
[1768495185004,4.95967876,143.26,143.2,5.07690279]
[1768495185204,4.7393659,143.27,143.2,5.07690279]
[1768495185409,4.95967876,143.26,143.2,5.07690279]
[1768495185596,4.7393659,143.27,143.2,5.07690279]
[1768495185800,4.9600337,143.26,143.2,5.07690279]
[1768495186104,4.7393659,143.27,143.2,5.07690279]
[1768495186297,4.9600337,143.26,143.2,5.07690279]
[1768495186505,4.7393659,143.27,143.2,5.07690279]
[1768495186804,4.96051533,143.26,143.2,11.36360279]
[1768495187011,4.7393659,143.27,143.2,11.36360279]
[1768495187205,4.96044593,143.26,143.2,11.36360279]
[1768495187404,4.7393659,143.27,143.2,11.36360279]
[1768495187612,4.96097393,143.26,143.2,11.36360279]
[1768495187813,4.7393659,143.27,143.2,11.36360279]
[1768495188014,4.96097393,143.26,143.2,11.36360279]
[1768495188310,4.7393659,143.27,143.2,11.36360279]
[1768495188511,4.96094602,143.26,143.2,11.36360279]
[1768495188714,4.7393659,143.27,143.2,11.36360279]
[1768495188911,4.96094602,143.26,143.2,11.36360279]
[1768495189112,4.7393659,143.27,143.2,11.36360279]
[1768495189409,4.7393659,143.25,143.2,0.05292097]
[1768495189814,4.7393659,143.25,143.18,11.31138182]
[1768495190111,4.7393659,143.25,143.18,5.02398182]
[1768495190317,0.05156084,143.23,143.16,5.02398182]
[1768495191503,0.05156084,143.23,143.18,11.59583971]
[1768495191916,4.7393659,143.26,143.18,11.59583971]
[1768495192113,4.97481354,143.25,143.18,11.59583971]
[1768495192315,0.04850369,143.22,143.18,11.59583971]
[1768495195217,0.04850369,143.22,143.19,11.59533971]
[1768495195523,5.43548854,143.28,143.2,5.30823971]
[1768495195820,4.97449897,143.27,143.2,5.30823971]
[1768495196021,5.43548854,143.28,143.21,6.2862]
[1768495196225,4.97450241,143.27,143.21,6.2862]
[1768495196525,5.43548854,143.28,143.21,6.2862]
[1768495196718,4.97472267,143.27,143.23,0.046343]
[1768495196921,5.43548854,143.28,143.23,0.046343]
[1768495197110,4.97472267,143.27,143.23,0.046343]
[1768495197312,5.43548854,143.28,143.23,0.046343]
[1768495197512,4.97501184,143.27,143.23,0.046343]
[1768495197717,5.43548854,143.28,143.23,0.046343]
[1768495197917,4.97494759,143.27,143.23,0.046343]
[1768495198120,5.43548854,143.28,143.23,0.046343]
[1768495198317,4.97501184,143.27,143.23,0.046343]
[1768495198518,5.43548854,143.28,143.23,0.046343]
[1768495198717,4.97521191,143.27,143.23,0.046343]
[1768495199019,5.43548854,143.28,143.23,0.046343]
[1768495199219,4.97521191,143.27,143.23,0.046343]
[1768495199421,5.43548854,143.28,143.23,0.046343]
[1768495199620,4.97473216,143.27,143.23,0.046343]
[1768495199822,5.43548854,143.28,143.23,0.046343]
[1768495200014,4.97490529,143.27,143.23,0.046343]
[1768495200219,5.43548854,143.28,143.23,0.046343]
[1768495200529,5.43548854,143.25,143.13,5.30823971]
[1768495200731,5.43548854,143.22,143.13,5.30823971]
[1768495200930,4.97539961,143.21,143.13,5.30823971]
[1768495201127,10.41088815,143.21,143.13,5.30823971]
[1768495201324,5.43548854,143.21,143.13,5.30823971]
[1768495201820,0.04962941,143.18,143.14,5.30823971]
[1768495202827,5.43548854,143.24,143.15,5.30823971]
[1768495203231,5.43548854,143.24,143.15,5.35222829]
[1768495203728,5.43548854,143.24,143.15,5.30823971]
[1768495203934,5.43548854,143.24,143.17,11.59623971]
[1768495204227,2.31695494,143.15,143.03,5.30823971]
[1768495204434,2.31695494,143.11,143.03,5.30823971]
[1768495204934,2.31695494,143.14,143.03,5.30823971]
[1768495205137,2.35585367,143.17,143.05,5.30823971]
[1768495205635,0.04624536,143.12,143.05,5.30823971]
[1768495205830,2.40209903,143.2,143.1,5.30823971]
[1768495206038,2.40209903,143.2,143.1,5.3583518]
[1768495206226,2.40209903,143.2,143.1,5.30823971]
[1768495207127,2.40209903,143.2,143.14,0.04655023]
[1768495208530,2.51642584,143.19,143.14,0.04655023]
[1768495209131,2.51642584,143.19,143.11,11.59873971]
[1768495210443,2.59047133,143.22,143.13,5.30823971]
[1768495212541,2.59047133,143.22,143.09,180.4257]
[1768495212542,2.59047133,143.22,143.16,0.05024468]
[1768495214141,4.9719667,143.21,143.16,0.05024468]
[1768495214344,2.59047133,143.22,143.16,0.05024468]
[1768495214548,2.73359048,143.2,143.12,5.30823971]
[1768495214746,4.97330147,143.19,143.12,5.30823971]
[1768495215245,7.741648,143.19,143.12,5.30823971]
[1768495215445,2.76834653,143.19,143.12,5.30823971]
[1768495215848,0.05051663,143.17,143.12,5.30823971]
[1768495217746,2.88721145,143.17,143.09,5.30823971]
[1768495217945,4.97551635,143.16,143.09,5.30823971]
[1768495218151,2.83669482,143.17,143.07,6.2922]
[1768495218346,7.84637722,143.16,143.07,11.60043971]
[1768495218548,0.05129384,143.14,143.08,6.2919]
[1768495218753,0.05129384,143.14,143.08,11.60013971]
[1768495219953,0.05129384,143.14,143.08,5.30823971]
[1768495220759,0.05129384,143.14,143.02,97.9169]
[1768495220760,2.98217975,143.12,143.02,5.30823971]
[1768495221047,3.01409365,143.1,143.02,5.30823971]
[1768495221643,0.04547316,143.07,143.02,5.30823971]
[1768495221844,0.04547316,143.07,143.05,0.05214819]
[1768495224147,0.04547316,143.07,143.02,5.30823971]
[1768495225756,0.04547316,143.07,142.95,6.13072294]
[1768495225757,3.1702438,143.06,142.95,6.13072294]
[1768495225954,3.1702438,143.05,142.95,6.13072294]
[1768495226262,82.58,143.06,142.95,6.13072294]
[1768495226456,3.20001711,143.08,142.96,6.13072294]
[1768495226658,85.80001711,143.11,142.99,6.13072294]
[1768495226854,92.09091711,143.11,143.01,6.13072294]
[1768495227159,3.22945914,143.1,143.01,6.13072294]
[1768495228063,0.04812938,143.07,143.01,6.13072294]
[1768495230662,0.04812938,143.07,143.02,6.13072294]
[1768495230861,3.25874877,143.13,143.02,6.13072294]
[1768495231860,3.25874877,143.13,143.03,6.13072294]
[1768495232162,9.54874877,143.13,143.03,6.13072294]
[1768495232864,3.25874877,143.13,143.04,6.13072294]
[1768495233360,3.44784169,143.16,143.07,6.17771018]
[1768495233561,9.73654169,143.16,143.07,6.17771018]
[1768495233761,9.73654169,143.16,143.07,6.13072294]
[1768495233958,86.09506607,143.18,143.07,6.13072294]
[1768495234262,3.47506607,143.18,143.08,6.13072294]
[1768495234458,3.47506607,143.18,143.1,0.04710296]
[1768495240967,3.47506607,143.18,143.1,6.1778259]
[1768495241768,0.0447204,143.15,143.1,12.4688259]
[1768495242170,0.0447204,143.15,143.11,6.13072294]
[1768495245970,0.0447204,143.15,143.11,12.42122294]
[1768495247169,82.62,143.2,143.12,6.2901]
[1768495247369,4.97891661,143.19,143.13,6.13072294]
[1768495247571,4.97891661,143.18,143.13,6.13072294]
[1768495247770,4.97891661,143.17,143.13,6.13072294]
[1768495248071,3.79998579,143.21,143.14,6.13072294]
[1768495248665,82.6,143.24,143.16,0.04438973]
[1768495248875,5.6695123,143.23,143.16,0.04438973]
[1768495249472,8.48084721,143.26,143.17,6.13072294]
[1768495249668,14.76504721,143.26,143.17,12.41862294]
[1768495250066,0.04924921,143.23,143.17,12.41862294]
[1768495250267,0.04924921,143.23,143.2,0.05042372]
[1768495259371,0.04924921,143.23,143.16,6.23502315]
[1768495260381,6.02266993,143.23,143.14,12.52402315]
[1768495260579,6.02266993,143.23,143.18,0.05307939]
[1768495260771,5.97342072,143.23,143.18,0.05307939]
[1768495260973,15.07045563,143.23,143.18,0.05307939]
[1768495261168,5.97342072,143.2,143.12,6.29]
[1768495261373,5.97342072,143.2,143.12,12.52502315]
[1768495261572,5.97342072,143.2,143.12,6.23502315]
[1768495262480,0.04896741,143.17,143.12,6.23502315]
[1768495262672,5.97342072,143.2,143.14,6.2893]
[1768495263370,5.97342072,143.2,143.12,12.52482315]